Cogmind - Beta 13 @@@ ROGUE MODE // 2024.05.29 @ 18:11:13 Player: Waste Result: Destroyed by 1C-UTU with 1C-UTU's Sword "Choppy" Performance ------------- Evolutions (1) 500 Regions Visited (6) 1200 Robots Destroyed (68) 340 Value Destroyed (1561) 1561 Prototype IDs (33) 660 Alien Tech Used (0) 0 Bonus (334) 334 TOTAL SCORE: 4595 Bonus ------- High Alert Combat Kills 41 Aligned with FarCom 300 Friendly Fire -7 Cogmind --------- Core Integrity 0/400 Matter 300/300 Energy 250/250 System Corruption 0% Temperature Cool (0) Movement Core (1450) Ox28 Location -8/Mines Parts ------- > --- POWER (1) -------- Ion Engine > --- PROPULSION (3) --- (None) > --- UTILITY (2) ------ Huge Storage Unit Experimental Core Analyzer > --- WEAPON (3) ------- (None) > --- INVENTORY (25) --- Ion Engine Light Neutrino Core Reinforced Fission Core Light Treads Improved Heat Sink Improved Heat Sink Experimental Heat Sink High-capacity Storage Unit Large Matter Pod (122) High-capacity Matter Pod (20) Gravity Neutralizer Experimental Sensor Array Experimental Targeting Computer Hardened Light Armor Plating Hardened Light Armor Plating Hacking Suite Improved System Guard System Purifier Advanced Recalibrator AS-neutralizer No. 17b 8R-AWN's Boregun Rocket Launcher Deploy-a-Sentry Peak State ------------ > --- POWER ------------ Ion Engine > --- PROPULSION ------- Light Treads Light Treads Light Treads > --- UTILITY ---------- Huge Storage Unit Experimental Core Analyzer > --- WEAPON ----------- Improved EM Shotgun 8R-AWN's Boregun > --- INVENTORY -------- Ion Engine Light Neutrino Core Reinforced Fission Core Light Treads Light Treads Improved Heat Sink Improved Heat Sink Experimental Heat Sink High-capacity Storage Unit Large Matter Pod High-capacity Matter Pod Gravity Neutralizer Experimental Sensor Array Experimental Targeting Computer Hardened Light Armor Plating Hardened Light Armor Plating Hacking Suite Improved System Guard System Purifier Advanced Recalibrator AS-neutralizer No. 17b Assault Rifle Grenade Launcher Rocket Launcher Deploy-a-Sentry [Rating: 38] Favorites ----------- Power Ion Engine Engine Ion Engine Propulsion Light Treads Treads Light Treads Leg Aluminum Leg Wheel Armored Wheel Utility Huge Storage Unit Device Improved Heat Sink Storage Huge Storage Unit Processor Experimental Core Analyzer Protection Light Armor Plating Weapon Improved EM Shotgun Energy Gun Improved EM Shotgun Energy Cannon Particle Cannon Ballistic Gun 8R-AWN's Boregun Ballistic Cannon Light Cannon Launcher Grenade Launcher Build | -11 -10 -10 -9 -9 -9 -8 ------- Run | Yrd Mat Min Mat Min Exi Min Slots Evolved 2 | . . . 2 . . . Power . | . . . . . . . Propulsion 1 | . . . 1 . . . Utility . | . . . . . . . Weapon 1 | . . . 1 . . . Parts Attached 60 | . 8 6 16 1 26 3 Power 4 | . . 1 1 1 1 . Engine 4 | . . 1 1 1 1 . Core . | . . . . . . . Reactor . | . . . . . . . Propulsion 11 | . . . 3 . 7 1 Treads 8 | . . . . . 7 1 Leg . | . . . . . . . Wheel 3 | . . . 3 . . . Hover . | . . . . . . . Flight . | . . . . . . . Utility 13 | . 3 3 3 . 4 . Device 3 | . . 1 1 . 1 . Storage 3 | . 2 . 1 . . . Processor 1 | . . . . . 1 . Hackware . | . . . . . . . Protection 6 | . 1 2 1 . 2 . Artifact . | . . . . . . . Weapon 32 | . 5 2 9 . 14 2 Energy Gun 10 | . 2 . 6 . 2 . Energy Cannon 5 | . 2 . 3 . . . Ballistic Gun 10 | . . 1 . . 8 1 Ballistic Cannon 1 | . . 1 . . . . Launcher 6 | . 1 . . . 4 1 Special Weapon . | . . . . . . . Impact Weapon . | . . . . . . . Slashing Weapon . | . . . . . . . Piercing Weapon . | . . . . . . . Special Melee Weapon . | . . . . . . . Unidentified Prototypes 5 | . . 1 1 . 3 . Parts Lost 21 | . . 1 2 2 9 7 Power 4 | . . 1 1 1 1 . Propulsion 7 | . . . . 1 2 4 Utility 2 | . . . . . 2 . Weapon 8 | . . . 1 . 4 3 Highest Loss Streak 7 | . . 1 1 2 7 7 To Critical Strikes 7 | . . 1 . . 6 . Average Slot Usage (%) 93 | . 95 99 98 98 87 80 Engine 10 | . 14 13 10 10 6 11 Treads 13 | . . . . . 32 26 Leg 7 | . 28 28 . . . . Wheel 10 | . . . 33 32 . . Device 4 | . . . 9 11 2 . Storage 11 | . 14 14 11 11 11 11 Processor 1 | . . . . . 2 11 Protection 4 | . 10 13 1 . 1 . Energy Gun 17 | . 21 . 22 33 18 7 Energy Cannon 2 | . 1 1 7 . . . Ballistic Gun 6 | . 2 13 . . 9 9 Ballistic Cannon 2 | . . 13 . . . . Naked Turns . | . . . . . . . Heaviest Build 99 | 12 34 34 97 95 99 94 Greatest Support 60 | 20 20 20 36 36 60 60 Greatest Overweight (x) 3 | . 1 1 2 3 3 1 Average Overweight (x) 1 | . . 1 1 2 1 1 Largest Inventory Capacity 25 | . 15 15 25 25 25 25 Average Capacity 21 | . 10 15 22 25 25 25 Most Carried 25 | . 15 15 25 24 25 25 Average Carried 18 | . 10 14 21 23 20 24 Final Capacity 25 | 8 15 15 25 25 25 25 Final Carried 25 | 6 15 15 24 23 25 23 Class Distribution -------------------- 34% | Gunner 32% | Mutant 13% | Scavenger-Mutant 12% | Scavenger-Gunner 7% | Tank Dominant Class ---------------- Mutant | -10/Materials Mutant | -10/Mines Gunner | -9/Materials Gunner | -9/Mines Scavenger-Gunner | -9/Exiles Scavenger-Mutant | -8/Mines Resources | -11 -10 -10 -9 -9 -9 -8 ----------- Run | Yrd Mat Min Mat Min Exi Min Matter Collected 1743 | 200 97 72 179 . 1068 127 Remotely . | . . . . . . . Salvage Created 2660 | . 198 104 1505 283 443 127 Parts 217 | . 26 4 91 18 71 7 Haulers Intercepted 4 | . 1 . 3 . . . Recyclers Shooed 1 | . . 1 . . . . Parts Field Recycled . | . . . . . . . Retrieved Matter . | . . . . . . . Parts Self-Destructed . | . . . . . . . Prevented . | . . . . . . . Kills | -11 -10 -10 -9 -9 -9 -8 ------- Run | Yrd Mat Min Mat Min Exi Min Combat Hostiles Destroyed 51 | . 7 2 27 8 5 2 Guns 25 | . 4 . 13 5 1 2 Cannons 14 | . . 2 12 . . . AOE 10 | . 3 . . 3 4 . Classes Destroyed 12 | . 5 1 2 1 3 . Worker 4 | . 2 . 2 . . . Builder 2 | . . . 2 . . . Hauler 4 | . 1 . 3 . . . Operator 1 | . . . 1 . . . Turret 1 | . . . . . 1 . Watcher 4 | . 1 . 3 . . . Swarmer 15 | . 6 . 6 3 . . Grunt 19 | . 1 . 13 3 . 2 Duelist 2 | . . . . 2 . . Sentry 10 | . . 2 8 . . . Zionite 3 | . . . . . 3 . Assembled 4 | . . . . . 4 . Best Kill Streak 6 | . 3 1 6 3 4 2 Combat Bots Only 6 | . 3 1 6 3 4 2 Max Kills in Single Turn 2 | . 2 1 2 2 2 1 Gunslinging 1 | . . . . 1 . . Exploded 2 | . 2 . . 2 2 . Melee . | . . . . . . . Uniques/NPCs Destroyed 4 | . . . . . 4 . 8R-AWN (-9/Exiles) EX-DEC (-9/Exiles) EX-BIN (-9/Exiles) EX-HEX (-9/Exiles) Combat | -11 -10 -10 -9 -9 -9 -8 -------- Run | Yrd Mat Min Mat Min Exi Min Hostile Shots Fired 284 | . 18 24 102 13 100 27 Missed 51 | . 7 5 19 1 14 5 Damage Taken 3733 | . 86 273 948 164 1601 661 Core 471 | . 25 15 154 17 145 115 Absorbed by Shields . | . . . . . . . Regen/Repaired (Parts) 11 | . . . 11 . . . Core Remaining (%) 92 | 100 . 84 . . . . Volleys Fired 234 | . 23 8 77 7 104 15 Largest 3 | . 2 2 3 3 3 2 Hottest 204 | . 80 120 204 135 69 65 Shots Fired 423 | . 44 17 173 21 150 18 Gun 314 | . 42 3 105 21 125 18 Cannon 82 | . . 14 68 . . . Launcher 27 | . 2 . . . 25 . Special . | . . . . . . . Kinetic 155 | . 10 5 . . 125 15 Thermal 112 | . 32 12 68 . . . Explosive 27 | . 2 . . . 25 . Electromagnetic 129 | . . . 105 21 . 3 Robot Hit Streak 22 | . 4 8 13 7 22 10 Robot Miss Streak 6 | . 3 2 4 6 5 3 Penetration Max 1 | . . . . . 1 . Secondary Targets 2 | . . . 1 1 . . Max Gunslinging Chain 1 | . . . 1 1 . . Shots Hit Robots 282 | . 25 11 121 14 96 15 Core Hits 148 | . 17 3 60 13 47 8 Critical Kills 4 | . . . 1 . 3 . Critical Parts Destroyed 9 | . . . . . 9 . Critical Strikes 13 | . . . 1 . 12 . Meltdown 1 | . . . 1 . . . Destroy 12 | . . . . . 12 . Melee Attacks . | . . . . . . . Impact . | . . . . . . . Slashing . | . . . . . . . Piercing . | . . . . . . . Sneak Attacks . | . . . . . . . Combat Hostiles . | . . . . . . . Follow-up Attacks . | . . . . . . . Damage Inflicted 5952 | . 422 188 2618 377 2154 193 Guns 3549 | . 249 13 1331 222 1542 192 Cannons 1222 | . . 175 1047 . . . Explosions 1129 | . 173 . 190 154 612 . Melee . | . . . . . . . Ramming 52 | . . . 50 1 . 1 Kinetic 1776 | . 46 31 . . 1542 157 Thermal 1751 | . 203 157 1237 154 . . Explosive 785 | . 173 . . . 612 . Electromagnetic 1588 | . . . 1331 222 . 35 Impact . | . . . . . . . Slashing . | . . . . . . . Piercing . | . . . . . . . Highest Corruption 1 | . 1 1 . . . . Average Corruption 1 | . 1 1 . . . . Corruption Purged . | . . . . . . . Corruption Blocked . | . . . . . . . Effects 9 | . 4 5 . . . . Message Errors 2 | . 1 1 . . . . Matter Fused 1 | . 1 . . . . . Energy Discharges 2 | . 1 1 . . . . Data Loss (minor) 3 | . 1 2 . . . . Misfires 1 | . . 1 . . . . Overload Shots . | . . . . . . . Overflow Damage 89 | . . . 59 17 13 . Projectiles 34 | . . . 34 . . . Explosions 35 | . . . 5 17 13 . Melee 20 | . . . 20 . . . Knockbacks . | . . . . . . . Impact . | . . . . . . . Kinetic . | . . . . . . . Secondary . | . . . . . . . Self-Inflicted Damage 133 | . . . 55 42 36 . Shots 4 | . . . 1 1 2 . Rammed 3 | . . . 1 1 . 1 Targets Rammed 3 | . . . 1 1 . 1 Kicked . | . . . . . . . Crushed . | . . . . . . . Highest Temperature 386 | . 162 386 343 48 249 18 Average Temperature 92 | . 48 186 90 22 117 7 Received Heat Transfer 576 | . . 108 318 6 . 144 Effects 7 | . . 2 2 . 3 . Interference 7 | . . 2 2 . 3 . Siege Activations . | . . . . . . . Robots Corrupted 2 | . . . 2 . . . Combat Hostiles 1 | . . . 1 . . . Parts Fried 8 | . . . 6 2 . . Impact Corruptions 1 | . . . 1 . . . Robots Melted 1 | . . . 1 . . . Combat Hostiles 1 | . . . 1 . . . Parts Melted 7 | . 3 . 4 . . . Heat Transferred 2959 | . 450 333 2026 150 . . Parts Sabotaged . | . . . . . . . Parts Stolen . | . . . . . . . Parts Stripped . | . . . . . . . Power Chain Reactions 6 | . . . 4 2 . . Alert | -11 -10 -10 -9 -9 -9 -8 ------- Run | Yrd Mat Min Mat Min Exi Min Peak Influence 520 | . 233 66 520 346 . 50 Initial 202 | . . 21 . 202 . . Average 147 | . 71 25 230 292 . 7 Maximum Alert Level 2 | . 1 . 2 1 . . Low Security (%) 61 | . 86 100 37 7 . 100 Level 1 33 | . 13 . 48 92 . . Level 2 5 | . . . 13 . . . Level 3 . | . . . . . . . Level 4 . | . . . . . . . Level 5 . | . . . . . . . High Security . | . . . . . . . Max Security . | . . . . . . . Squads Dispatched 4 | . 1 . 3 . . . Investigation 1 | . . . 1 . . . Extermination . | . . . . . . . Reinforcement 3 | . 1 . 2 . . . Assault . | . . . . . . . Garrison . | . . . . . . . Intercept . | . . . . . . . Searches Triggered . | . . . . . . . Construction Impeded . | . . . . . . . Haulers Reinforced . | . . . . . . . Active Scanning Responses . | . . . . . . . Cargo Convoy Interrupts . | . . . . . . . Stealth | -11 -10 -10 -9 -9 -9 -8 --------- Run | Yrd Mat Min Mat Min Exi Min Distress Signals 2 | . 1 . 1 . . . Communications Jammed . | . . . . . . . Distress Signals . | . . . . . . . Times Spotted 139 | . 16 2 36 8 72 5 Peak Tracking Total 9 | . 4 2 5 3 9 4 Tactical Retreats 21 | . . . 2 . 19 . Traps | -11 -10 -10 -9 -9 -9 -8 ------- Run | Yrd Mat Min Mat Min Exi Min Traps Triggered 2 | . 1 . 1 . . . Indirectly . | . . . . . . . Trap Hack Attempts . | . . . . . . . Triggered . | . . . . . . . Disarmed . | . . . . . . . Reprogrammed . | . . . . . . . Reused . | . . . . . . . Traps Extracted . | . . . . . . . Installed . | . . . . . . . Triggered . | . . . . . . . Machines | -11 -10 -10 -9 -9 -9 -8 ---------- Run | Yrd Mat Min Mat Min Exi Min Machines Disabled 14 | . . . 3 . 11 . Max in Single Turn 2 | . . . 1 . 2 . Machines Repaired . | . . . . . . . Machines Dismantled . | . . . . . . . Machines Sabotaged . | . . . . . . . Overloaded Fab Kills . | . . . . . . . Hacking | -11 -10 -10 -9 -9 -9 -8 --------- Run | Yrd Mat Min Mat Min Exi Min Machines Accessed 8 | . 4 . 3 . 1 . Terminals 6 | . 4 . 2 . . . Fabricators . | . . . . . . . Repair Stations 1 | . . . 1 . . . Recycling Units . | . . . . . . . Scanalyzers . | . . . . . . . Garrison Access . | . . . . . . . Total Hacks 22 | . 14 . 7 . 1 . Successful 9 | . 4 . 4 . 1 . Failed 12 | . 9 . 3 . . . Catastrophic 2 | . 2 . . . . . Database Lockouts 1 | . 1 . . . . . Manual 17 | . 14 . 2 . 1 . Terminals 19 | . 14 . 5 . . . Fabricators . | . . . . . . . Repair Stations 2 | . . . 2 . . . Recycling Units . | . . . . . . . Scanalyzers . | . . . . . . . Garrison Access . | . . . . . . . Terminal Hacks 6 | . 4 . 1 . 1 . Robot Analysis 2 | . 2 . . . . . Prototype ID Bank 3 | . 2 . 1 . . . Derelict Proto ID Bank 1 | . . . . . 1 . Fabricator Hacks . | . . . . . . . Repair Station Hacks 2 | . . . 2 . . . Scan Component 1 | . . . 1 . . . Repair 1 | . . . 1 . . . Recycling Unit Hacks . | . . . . . . . Scanalyzer . | . . . . . . . Garrison Access Hacks . | . . . . . . . Unauthorized Hacks 1 | . . . 1 . . . Terminals 1 | . . . 1 . . . Assimilate 1 | . . . 1 . . . Fabricators . | . . . . . . . Repair Stations . | . . . . . . . Recycling Units . | . . . . . . . Scanalyzers . | . . . . . . . Garrison Access . | . . . . . . . Data Cores Recovered . | . . . . . . . Used . | . . . . . . . Hacking Detections 7 | . 4 . 3 . . . Full Trace Events . | . . . . . . . Feedback Events . | . . . . . . . Feedback Blocked . | . . . . . . . Robot Schematics Acquired . | . . . . . . . Robots Built . | . . . . . . . Authchips . | . . . . . . . Time . | . . . . . . . Total Robot Build Rating . | . . . . . . . Part Schematics Acquired . | . . . . . . . Parts Built . | . . . . . . . Authchips . | . . . . . . . Time . | . . . . . . . Total Part Build Rating . | . . . . . . . Parts Repaired 1 | . . . 1 . . . Time 108 | . . . 108 . . . Parts Recycled . | . . . . . . . Recycled Matter . | . . . . . . . Retrieved Matter . | . . . . . . . Retrieved Components . | . . . . . . . Parts Scanalyzed . | . . . . . . . Part Schematics Acquired . | . . . . . . . Parts Damaged . | . . . . . . . Bothacking | -11 -10 -10 -9 -9 -9 -8 ------------ Run | Yrd Mat Min Mat Min Exi Min Used RIF Installer . | . . . . . . . Robots Hacked . | . . . . . . . Non-combat . | . . . . . . . Combat . | . . . . . . . Robot Hacks Applied . | . . . . . . . Relay Couplers Released . | . . . . . . . Fabnet Peak Effective % . | . . . . . . . Robots Rewired . | . . . . . . . Allies Hacked . | . . . . . . . Hacks Repelled . | . . . . . . . Allies | -11 -10 -10 -9 -9 -9 -8 -------- Run | Yrd Mat Min Mat Min Exi Min Total Allies 3 | . . 2 1 . . . Largest Group 3 | . . 2 3 . . . Highest-Rated Group 58 | . . 48 58 . . . Highest-Rated Ally 31 | . . 31 31 . . . Total Orders . | . . . . . . . Ally Attacks 5 | . . . 5 . . . Total Damage 60 | . . . 60 . . . Kills . | . . . . . . . Allies Corrupted . | . . . . . . . Allies Melted . | . . . . . . . Intel | -11 -10 -10 -9 -9 -9 -8 ------- Run | Yrd Mat Min Mat Min Exi Min Robot Analysis Total 2 | . 2 . . . . . Derelict Logs Recovered 4 | . . 2 . 2 . . Drone Launches . | . . . . . . . Drone Recoveries . | . . . . . . . Exploration | -11 -10 -10 -9 -9 -9 -8 ------------- Run | Yrd Mat Min Mat Min Exi Min Turns Passed 6042 | . 708 961 1459 434 2388 92 Spaces Moved 3003 | 1 423 484 880 327 867 21 Core . | . . . . . . . Treads 876 | . . . . . 855 21 Legs 908 | 1 423 484 . . . . Wheels 1219 | . . . 880 327 12 . Hover . | . . . . . . . Flight . | . . . . . . . Fastest Speed 90 | 120 120 190 90 120 135 240 Average Speed 168 | 120 142 190 114 121 238 240 Slowest Speed 240 | 120 190 190 120 135 240 240 Overloaded Moves . | . . . . . . . Propulsion Burnouts . | . . . . . . . Robots Hopped . | . . . . . . . Cave-ins Triggered . | . . . . . . . Exploration Rate (%) 59 | 2 68 93 74 74 91 11 Regions Visited 6 Branch Regions 4 Pre-discovered Areas 1 | . . 1 . . . . Known Exits Taken . | . . . . . . . Unknown Exits Taken 6 | 1 1 1 1 1 1 . Scrap Searched 2 | . . 1 . 1 . . Spaces Dug 1 | . . . . . 1 . Terrain Destroyed 71 | . 9 . 12 12 38 . Melee . | . . . . . . . Projectile 5 | . . . . . 5 . AOE 65 | . 9 . 12 12 32 . Terrain Rammed . | . . . . . . . Walls Destroyed . | . . . . . . . Machines Disabled . | . . . . . . . Actions | -11 -10 -10 -9 -9 -9 -8 --------- Run | Yrd Mat Min Mat Min Exi Min Total 3662 | . 490 511 1202 349 1068 42 Wait 266 | . 21 5 186 14 38 2 Move 2997 | . 422 483 879 326 866 21 Hop . | . . . . . . . Pick Up 56 | . 10 3 23 . 20 . Fast Attach 17 | . 3 3 8 . 3 . Attach 26 | . 1 . 6 1 16 2 Detach 3 | . 1 . 1 . 1 . Swap 17 | . 4 3 2 . 7 1 Drop 43 | . 5 6 19 . 13 . Fire 234 | . 23 8 77 7 104 15 Melee . | . . . . . . . Ram 3 | . . . 1 1 . 1 Kick . | . . . . . . . Crush . | . . . . . . . Escape Stasis . | . . . . . . . Rewire . | . . . . . . . Trap . | . . . . . . . Miscellaneous . | . . . . . . . Route ------- -11/Scrapyard -10/Materials (discovered 2 exits: *Mat / [*Min]) -10/Mines (discovered 3 exits: *Mat x2 / [*Sub]) -9/Materials (discovered 5 exits: *Mat x3 / [*Min x2]) -9/Mines (discovered 3 exits: *Mat / *Exi / [*Zio]) -9/Exiles -8/Mines History --------- Turn | Location | Event 1 | -11/Scrapyard | Discovered new exit (range 0) 1 | -11/Scrapyard | Entered Materials 221 | -10/Materials | Discovered new exit (range 7) 301 | -10/Materials | Build established: Mutant 369 | -10/Materials | Discovered new exit (range 14) 473 | -10/Materials | Central database locked down 709 | -10/Materials | Entered Mines 963 | -10/Mines | Discovered new exit (range 10) 990 | -10/Mines | Discovered new exit (range 13) 1303 | -10/Mines | Learned Materials emergency access door positions 1312 | -10/Mines | Learned location of 2 exits from Materials 1315 | -10/Mines | Learned location of Storage (-7) 1441 | -10/Mines | Found a damaged Exp. Sensor Array with a note attached 1446 | -10/Mines | Found Prototype Device 1446 | -10/Mines | Identified Exp. Sensor Array 1497 | -10/Mines | Discovered new exit (range 15) 1670 | -10/Mines | Entered Materials 1670 | -9/Materials | Accompanied by 2 allies 1670 | -9/Materials | Evolved 2 slots: Propulsion x1, Weapon x1 1671 | -9/Materials | Identified exit to Materials 1675 | -9/Materials | Led the pair of lost Derelicts to an unsafe place 1723 | -9/Materials | Discovered new exit (range 11) 2419 | -9/Materials | Repaired Exp. Sensor Array 2422 | -9/Materials | Build established: Gunner 2690 | -9/Materials | Discovered new exit (range 8) 2854 | -9/Materials | Discovered exit to Materials (range 15) 3129 | -9/Materials | Entered Mines 3489 | -9/Mines | A Derelict revealed a hidden shortcut to a safe place 3521 | -9/Mines | Learned Materials security intel 3521 | -9/Mines | Discovered exit to Materials (range 7) 3556 | -9/Mines | Deemed a non-threat by the Exiles lab entrance 3558 | -9/Mines | Discovered new exit (range 5) 3563 | -9/Mines | Entered Exiles 3618 | -9/Exiles | Met 8R-AWN 3656 | -9/Exiles | Met EX-HEX 3721 | -9/Exiles | Met EX-BIN 3755 | -9/Exiles | Aligned with FarCom system 3757 | -9/Exiles | Given EX-Vault access code 3815 | -9/Exiles | Opened EX-Vault 3831 | -9/Exiles | Found AWS/Gauss 3878 | -9/Exiles | Warned to stay clear of 0b10 Research branches 3952 | -9/Exiles | Met EX-DEC 4042 | -9/Exiles | Attacked by the Exiles 4149 | -9/Exiles | Core integrity fell below 50% 4266 | -9/Exiles | Lost 7 parts (1p2n1u3w) 4267 | -9/Exiles | Destroyed 8R-AWN 4296 | -9/Exiles | Found Prototype Device 4307 | -9/Exiles | Found Prototype Processor 4310 | -9/Exiles | Found Prototype Ballistic Gun 4543 | -9/Exiles | Identified 8R-AWN's Boregun 4830 | -9/Exiles | Build established: Scavenger-Gunner 5201 | -9/Exiles | Destroyed EX-DEC 5252 | -9/Exiles | Destroyed EX-BIN 5260 | -9/Exiles | Destroyed EX-HEX 5322 | -9/Exiles | Found Prototype Device 5322 | -9/Exiles | Identified System Purifier 5377 | -9/Exiles | Found Prototype Processor 5377 | -9/Exiles | Identified Exp. Core Analyzer 5401 | -9/Exiles | Found Deploy-a-Sentry 5497 | -9/Exiles | Build established: Scavenger-Mutant 5932 | -9/Exiles | Discovered new exit (range 10) 5951 | -9/Exiles | Left Exiles lab with Deploy-a-Sentry 5951 | -9/Exiles | Entered Mines 6023 | -8/Mines | Core integrity fell below 20% 6035 | -8/Mines | 1C-UTU came to Exiles' defense 6043 | -8/Mines | Destroyed by 1C-UTU with 1C-UTU's Sword "Choppy" Last Messages --------------- GOAL=ESCAPE 05952_ K-01 Serf collects debris. 05961_ K-01 Serf cleans the Pulverizer. 05965_ K-01 Serf collects debris. 05967_ K-01 Serf cleans the Pulverizer. 05971_ K-01 Serf collects debris. 06010_ Imp. EM Shotgun destroyed. 06012_ Lgt. Treads destroyed. 06019_ G-50 Soldier destroyed. 06033_ G-47 Trooper destroyed. 06035_ 1C-UTU: "I came as fast as I could... Wait, it was you!" 06036_ Assault Rifle destroyed. 06036_ 1C-UTU follow-up attacks with Prototype Slashing Weapon. 06036_ Grenade Launcher destroyed. 06038_ Acquired 127 matter. 06039_ Lgt. Treads destroyed. 06039_ 1C-UTU follow-up attacks with Prototype Slashing Weapon. 06039_ Lgt. Treads destroyed. 06040_ Slammed into G-47 Trooper. 06040_ Destabilizing: Core damaged (-8). Map ----- +----------------------------------------------------+ | ??????????????????????????????? | | ??????????????????????????????? | | ??????????????????????????????? | | ??????????????????????????????? | | ??????????????????????????????? | | ??????????????????????????????? | | ??????????????????????????????? | | ??????????????????????????????? | | ??????????????????????????????? | | ??????????????????????????????? | | ??????????????????????????????? | | ??????????????????????????????? | | ??????????????????????????????? | | ??????????????????????????????? | | ??????????????????????????????? | | ??????????????????????????????? | | ??????????????????????????????? | | ??########????????????????????? | | ??# ???????????????????? | | ??# #??????????????????? | | ??# #??????????????????? | | ??# """" #??????????????????? | | ??# """" #??????????????????? | | ??# """" ???????????????????? | | ???? =g! ?????????????????????? | | ?????#@#??????????????????????? | | ?????#l#??????????????????????? | | ?????#*#??#################???? | | ?????#[#??# #???? | | ?????#s#### #???? | | ?????# #???? | | ?????###### """ """ """ #???? | | ??????????# """ """ """ ? | | ??????????# """ """ """ | | ??????????# """ """ """ ##### | | ??????????# #???? | | ??????????#################???? | | ??????????????????????????????? | | ??????????????????????????????? | | ??????????????????????????????? | | ??????????????????????????????? | | ??????????????????????????????? | | ??????????????????????????????? | | ??????????????????????????????? | | | | | | | | | | | | | +----------------------------------------------------+ Best States ------------- Heat Dissipation 42 Energy Generation 12 Energy Capacity 265 Matter Stores 300 Matter Capacity 300 Sight Range 16 Terrain Scan Density 10 Armor Coverage 150 Evasion (%) 55 Core Analysis 8 Recoil Reduction 3 Authchip Count 2 Item Schematics ----------------- None Robot Schematics ------------------ None Fabricated ------------ Nothing Alien Tech Used ----------------- None Achievements -------------- None Challenges ------------ None Game ------ Seed DynamicServoMatter Manual? 0 Play Time 00:26:30 Cumulative 246.3 hours Start 2024.05.29 @ 17:45:29 End 2024.05.29 @ 18:11:13 Sessions 1 Manual Loads 0 Difficulty Rogue Special Mode None Game No. 304 Rogue 304 Adventurer 0 Explorer 0 Win Type - Total 9 Types 5/1/0/1/1/0/0/1/0 Lore% 73 Gallery% 81 Achievement% 70 Wizard Run 0 Options --------- Layout 0 ASCII 0 Keyboard 0 Movement Numpad Keybinds 0 Fullscreen 1 Font 18/SmallcapsGlow Map View 76x50 Zoom Use 0% Tactical HUD 1 Map Filters NONE Filters NONE Steam 1 RUN: 8fb1436c-2167-4d36-9da4-062bf43b07f4